fUSD/lending_fUSD_20240409
["ID","MTS","AMOUNT","RATE_DAILY","PERIOD"]
[321984379,1712673058754,-500.0,0.00020469,2]
[321984380,1712673058763,-500.0,0.00020469,2]
[321984381,1712673058773,-500.0,0.00020469,2]
[321984382,1712673058782,-500.0,0.00020469,2]
[321984383,1712673058792,-500.0,0.00020469,2]
[321984384,1712673058801,-500.0,0.00020469,2]
[321984385,1712673058810,-500.0,0.00020469,2]
[321984386,1712673058819,-500.0,0.00020469,2]
[321984387,1712673058829,-500.0,0.00020469,2]
[321984388,1712673058838,-500.0,0.00020469,2]
[321984389,1712673058847,-500.0,0.00020469,2]
[321984390,1712673058857,-500.0,0.00020469,2]
[321984391,1712673058866,-500.0,0.00020469,2]
[321984392,1712673058876,-500.0,0.00020469,2]
[321984393,1712673058885,-694.42,0.00020469,2]
[321984394,1712673058894,-500.0,0.00020469,2]
[321984395,1712673058903,-500.0,0.00020469,2]
[321984396,1712673058912,-500.0,0.00020469,2]
[321984397,1712673058922,-500.0,0.00020469,2]
[321984398,1712673058931,-500.0,0.00020469,2]
[321984399,1712673058953,-500.0,0.00020469,2]
[321984400,1712673058963,-500.0,0.00020469,2]
[321984401,1712673058972,-500.0,0.00020469,2]
[321984402,1712673058982,-500.0,0.00020469,2]
[321984403,1712673058992,-500.0,0.00020469,2]
[321984404,1712673059002,-500.0,0.00020469,2]
[321984405,1712673059026,-500.0,0.00020469,2]
[321984406,1712673059036,-500.0,0.00020469,2]
[321984407,1712673059046,-500.0,0.00020469,2]
[321984408,1712673059055,-635.68,0.00020469,2]
[321984409,1712673059066,-500.0,0.00020469,2]
[321984410,1712673059075,-1123.94,0.00020469,2]
[321984411,1712673059087,-500.0,0.00020469,2]
[321984412,1712673059097,-631.8,0.00020469,2]
[321984413,1712673059107,-503.37,0.00020469,2]
[321984414,1712673059117,-671.09,0.00020469,2]
[321984415,1712673059127,-500.0,0.00020469,2]
[321984416,1712673059138,-823.54,0.00020469,2]
[321984417,1712673059148,-500.0,0.00020469,2]
[321984418,1712673059157,-500.0,0.00020469,2]
[321984419,1712673059167,-500.0,0.00020469,2]
[321984420,1712673059176,-541.03,0.00020469,2]
[321984421,1712673059186,-500.0,0.00020469,2]
[321984422,1712673059206,-500.0,0.00020469,2]
[321984423,1712673059215,-633.62,0.00020469,2]
[321984424,1712673059225,-596.75,0.00020469,2]
[321984425,1712673059235,-668.22,0.00020469,2]
[321984426,1712673059245,-500.0,0.00020469,2]
[321984427,1712673059255,-843.11,0.00020469,2]
[321984428,1712673059264,-933.78,0.00020469,2]
[321984429,1712673059274,-500.0,0.00020469,2]
[321984430,1712673059286,-500.0,0.00020469,2]
[321984431,1712673059297,-500.0,0.00020469,2]
[321984432,1712673059307,-1111.73,0.00020469,2]
[321984433,1712673059318,-500.0,0.00020469,2]
[321984434,1712673059328,-852.6,0.00020469,2]
[321984435,1712673059337,-500.0,0.00020469,2]
[321984436,1712673059347,-663.39,0.00020469,2]
[321984437,1712673059357,-500.0,0.00020469,2]
[321984438,1712673059367,-1221.45,0.00020469,2]
[321984439,1712673059376,-500.0,0.00020469,2]
[321984440,1712673059386,-627.38,0.00020469,2]
[321984441,1712673059396,-500.0,0.00020469,2]
[321984442,1712673059405,-657.38,0.00020469,2]
[321984443,1712673059414,-1292.14,0.00020469,2]
[321984444,1712673059424,-536.62,0.00020469,2]
[321984445,1712673059433,-832.11,0.00020469,2]
[321984446,1712673059451,-500.0,0.00020469,2]
[321984447,1712673059461,-500.0,0.00020469,2]
[321984448,1712673059471,-500.0,0.00020469,2]
[321984449,1712673059484,-500.0,0.00020469,2]
[321984450,1712673059494,-500.0,0.00020469,2]
[321984451,1712673059504,-923.79,0.00020469,2]
[321984452,1712673059514,-697.54,0.00020469,2]
[321984453,1712673059524,-897.1,0.00020469,2]
[321984454,1712673059534,-500.0,0.00020469,2]
[321984455,1712673059544,-500.0,0.00020469,2]
[321984456,1712673059555,-500.0,0.00020469,2]
[321984457,1712673059566,-1078.41,0.00020469,2]
[321984458,1712673059585,-551.12,0.00020469,2]
[321984459,1712673059597,-500.0,0.00020469,2]
[321984460,1712673059608,-600.78,0.00020469,2]
[321984461,1712673059619,-603.54,0.00020469,2]
[321984462,1712673059631,-843.29,0.00020469,2]
[321984463,1712673059641,-791.5,0.00020469,2]
[321984464,1712673059651,-500.0,0.00020469,2]
[321984465,1712673059662,-2333.52,0.00020469,2]
[321984466,1712673059674,-1043.44,0.00020469,2]
[321984467,1712673059684,-500.0,0.00020469,2]
[321984468,1712673059704,-500.0,0.00020469,2]
[321984469,1712673059716,-500.0,0.00020469,2]
[321984470,1712673059727,-747.53,0.00020469,2]
[321984471,1712673059737,-603.09,0.00020469,2]
[321984472,1712673059749,-629.11653287,0.00020469,2]
[321984473,1712673059762,-500.0,0.00020469,2]
[321984474,1712673059772,-500.0,0.00020469,2]
[321984475,1712673059782,-500.0,0.00020469,2]
[321984476,1712673059793,-500.0,0.00020469,2]
[321984477,1712673059804,-963.48,0.00020469,2]
[321984478,1712673059814,-790.33,0.00020469,2]
[321984479,1712673059824,-500.0,0.00020469,2]
[321984480,1712673059833,-500.0,0.00020469,2]
[321984481,1712673059843,-500.0,0.00020469,2]
[321984482,1712673059853,-1616.37,0.00020469,2]
[321984483,1712673059862,-1471.69,0.00020469,2]
[321984484,1712673059872,-500.0,0.00020469,2]
[321984485,1712673059882,-547.97,0.00020469,2]
[321984486,1712673059891,-500.0,0.00020469,2]
[321984487,1712673059901,-635.6,0.00020469,2]
[321984488,1712673059911,-500.0,0.00020469,2]
[321984489,1712673059921,-500.0,0.00020469,2]
[321984490,1712673059930,-500.0,0.00020469,2]
[321984491,1712673059947,-577.34,0.00020469,2]
[321984492,1712673059956,-1427.59,0.00020469,2]
[321984493,1712673059966,-500.0,0.00020469,2]
[321984494,1712673059976,-500.0,0.00020469,2]
[321984495,1712673059985,-500.0,0.00020469,2]
[321984496,1712673059994,-500.0,0.00020469,2]
[321984497,1712673060003,-817.26,0.00020469,2]
[321984498,1712673060013,-500.0,0.00020469,2]
[321984499,1712673060022,-957.96,0.00020469,2]
[321984500,1712673060031,-2342.26,0.00020469,2]
[321984501,1712673060041,-500.0,0.00020469,2]
[321984502,1712673060050,-500.0,0.00020469,2]
[321984503,1712673060060,-469.18,0.00020469,2]
[321984504,1712673060198,-500.0,0.00020469,2]
[321984505,1712673060208,-1704.1,0.00020469,2]
[321984506,1712673060218,-500.0,0.00020469,2]
[321984507,1712673060228,-2324.62,0.00020469,2]
[321984508,1712673060238,-1290.55,0.00020469,2]
[321984509,1712673060248,-500.0,0.00020469,2]
[321984510,1712673060258,-500.0,0.00020469,2]
[321984511,1712673060269,-545.93,0.00020469,2]
[321984512,1712673060278,-2247.07,0.00020469,2]
[321984513,1712673060288,-848.38,0.00020469,2]
[321984514,1712673060297,-500.0,0.00020469,2]
[321984515,1712673060307,-1229.91,0.00020469,2]
[321984516,1712673060317,-744.27,0.00020469,2]
[321984517,1712673060327,-660.82,0.00020469,2]
[321984518,1712673060336,-2561.61,0.00020469,2]
[321984519,1712673060346,-984.35,0.00020469,2]
[321984520,1712673060356,-1345.92,0.00020469,2]
[321984521,1712673060366,-3955.76,0.00020469,2]
[321984522,1712673060376,-990.99,0.00020469,2]
[321984523,1712673060386,-500.0,0.00020469,2]
[321984524,1712673060395,-500.0,0.00020469,2]
[321984525,1712673060405,-1438.9,0.00020469,2]
[321984526,1712673060416,-768.81,0.00020469,2]
[321984527,1712673060427,-2389.13,0.00020469,2]
[321984528,1712673060440,-7729.52,0.00020469,2]
[321984529,1712673060452,-500.0,0.00020469,2]
[321984530,1712673060463,-500.0,0.00020469,2]
[321984531,1712673060474,-511.93,0.00020469,2]
[321984532,1712673060486,-1018.62,0.00020469,2]
[321984533,1712673060497,-4481.77,0.00020469,2]
[321984534,1712673060507,-1870.76,0.00020469,2]
[321984535,1712673060517,-500.0,0.00020469,2]
[321984536,1712673060527,-1583.59,0.00020469,2]
[321984537,1712673060537,-500.0,0.00020469,2]
[321984538,1712673060546,-11328.73,0.00020469,2]
[321984539,1712673060556,-6539.18,0.00020469,2]
[321984540,1712673060566,-645.84516371,0.00020469,2]
[321984541,1712673060580,-500.0,0.00020469,2]
[321984542,1712673060590,-1713.02,0.00020469,2]
[321984543,1712673060600,-7732.93,0.00020469,2]
[321984544,1712673060609,-1559.45,0.00020469,2]
[321984545,1712673060622,-506.61,0.00020469,2]
[321984546,1712673060632,-10439.82,0.00020469,2]
[321984547,1712673060641,-4574.26,0.00020469,2]
[321984548,1712673060651,-4021.44,0.00020469,2]
[321984549,1712673060662,-2156.27,0.00020469,2]
[321984550,1712673060673,-1482.86,0.00020469,2]
[321984551,1712673060683,-4514.37,0.00020469,2]
[321984552,1712673060702,-7547.68,0.00020469,2]
[321984553,1712673060713,-5257.69,0.00020469,2]
[321984554,1712673060723,-1782.36,0.00020469,2]
[321984555,1712673060733,-500.0,0.00020469,2]
[321984556,1712673060743,-500.0,0.00020469,2]
[321984557,1712673060753,-2888.04,0.00020469,2]
[321984558,1712673060763,-500.0,0.00020469,2]
[321984559,1712673060773,-1138.87,0.00020469,2]
[321984560,1712673060783,-16169.01,0.00020469,2]
[321984561,1712673060793,-2849.22,0.00020469,2]
[321984562,1712673060803,-1282.9,0.00020469,2]
[321984563,1712673060813,-12358.6,0.00020469,2]
[321984564,1712673060824,-2014.2,0.00020469,2]
[321984565,1712673060834,-500.0,0.00020469,2]
[321984566,1712673060844,-540.87,0.00020469,2]
[321984567,1712673060854,-647.15,0.00020469,2]
[321984568,1712673060864,-500.0,0.00020469,2]
[321984569,1712673060873,-2974.08,0.00020469,2]
[321984570,1712673060883,-642.16,0.00020469,2]
[321984571,1712673060892,-37418.55,0.00020469,2]
[321984572,1712673060901,-447.95690276,0.00020469,2]
[321984573,1712673060911,-500.0,0.00020469,2]
[321984574,1712673060920,-1291.87,0.00020469,2]
[321984575,1712673060930,-4841.64,0.00020469,2]
[321984576,1712673060946,-2943.33,0.00020469,2]
[321984577,1712673060960,-1250.53,0.00020469,2]
[321984578,1712673060970,-975.68,0.00020469,2]
[321984579,1712673060980,-608.75,0.00020469,2]
[321984580,1712673060991,-1560.97,0.00020469,2]
[321984581,1712673061001,-500.0,0.00020469,2]
[321984582,1712673061015,-500.0,0.00020469,2]
[321984583,1712673061025,-501.82191208,0.00020469,2]
[321984584,1712673061035,-7440.56,0.00020469,2]
[321984585,1712673061045,-1507.52,0.00020469,2]
[321984586,1712673061056,-595.02,0.00020469,2]
[321984587,1712673061066,-500.0,0.00020469,2]
[321984588,1712673061078,-2112.88,0.00020469,2]
[321984589,1712673061088,-3351.5,0.00020469,2]
[321984590,1712673061098,-547.81,0.00020469,2]
[321984591,1712673061108,-500.0,0.00020469,2]
[321984592,1712673061118,-4404.54,0.00020469,2]
[321984593,1712673061127,-500.0,0.00020469,2]
[321984594,1712673061138,-582.7,0.00020469,2]
[321984595,1712673061147,-500.0,0.00020469,2]
[321984596,1712673061157,-1392.75,0.00020469,2]
[321984597,1712673061166,-1587.93,0.00020469,2]
[321984598,1712673061177,-6682.62,0.00020469,2]
[321984599,1712673061193,-3322.41,0.00020469,2]
[321984600,1712673061203,-500.0,0.00020469,2]
[321984601,1712673061213,-1075.26,0.00020469,2]
[321984602,1712673061222,-1041.42,0.00020469,2]
[321984603,1712673061231,-500.0,0.00020469,2]
[321984604,1712673061241,-2054.92,0.00020469,2]
[321984605,1712673061251,-887.34,0.0002047,2]
[321984606,1712673061261,-500.0,0.0002047,2]
[321984607,1712673061270,-500.0,0.0002047,2]
[321984608,1712673061282,-877.52,0.0002047,2]
[321984609,1712673061292,-589.79,0.0002047,2]
[321984610,1712673061301,-500.0,0.0002047,2]
[321984611,1712673061311,-970.17,0.0002047,2]
[321984612,1712673061321,-500.0,0.0002047,2]
[321984613,1712673061331,-642.9,0.0002047,2]
[321984614,1712673061341,-500.0,0.0002047,2]
[321984615,1712673061351,-500.0,0.0002047,2]
[321984616,1712673061361,-500.0,0.0002047,2]
[321984617,1712673061371,-693.74,0.0002047,2]
[321984618,1712673061381,-500.0,0.0002047,2]
[321984619,1712673061391,-500.0,0.0002047,2]
[321984620,1712673061401,-1000.78,0.0002047,2]
[321984621,1712673061411,-738.19,0.0002047,2]
[321984622,1712673061421,-500.0,0.0002047,2]
[321984623,1712673061431,-926.32,0.0002047,2]
[321984624,1712673061446,-1221.81,0.0002047,2]
[321984625,1712673061456,-948.87,0.0002047,2]
[321984626,1712673061466,-1565.19,0.0002047,2]
[321984627,1712673061476,-1044.52,0.0002047,2]
[321984628,1712673061488,-500.0,0.0002047,2]
[321984629,1712673061498,-529.42,0.0002047,2]
[321984630,1712673061507,-1184.17,0.0002047,2]
[321984631,1712673061518,-500.0,0.0002047,2]
[321984632,1712673061527,-500.0,0.0002047,2]
[321984633,1712673061537,-856.68,0.0002047,2]
[321984634,1712673061547,-888.7,0.0002047,2]
[321984635,1712673061556,-736.06,0.0002047,2]
[321984636,1712673061566,-1079.72,0.0002047,2]
[321984637,1712673061580,-1842.93,0.0002047,2]
[321984638,1712673061590,-852.25,0.0002047,2]
[321984639,1712673061599,-848.52,0.0002047,2]
[321984640,1712673061609,-500.0,0.0002047,2]
[321984641,1712673061621,-500.0,0.0002047,2]
[321984642,1712673061631,-820.14,0.0002047,2]
[321984643,1712673061642,-1248.3,0.0002047,2]
[321984644,1712673061653,-500.0,0.0002047,2]
[321984645,1712673061671,-537.42336327,0.0002047,2]
[321984646,1712673061682,-792.88,0.0002047,2]
[321984647,1712673061701,-587.65843857,0.0002047,2]
[321984648,1712673061712,-766.08,0.0002047,2]
[321984649,1712673061721,-805.39,0.0002047,2]
[321984650,1712673061731,-1311.8,0.0002047,2]
[321984651,1712673061741,-1313.68,0.0002047,2]
[321984652,1712673061750,-500.0,0.0002047,2]
[321984653,1712673061760,-871.9,0.0002047,2]
[321984654,1712673061769,-826.01,0.0002047,2]
[321984655,1712673061780,-2742.0,0.0002047,2]
[321984656,1712673061790,-500.0,0.0002047,2]
[321984657,1712673061799,-626.09,0.0002047,2]
[321984658,1712673061809,-2697.91,0.0002047,2]
[321984659,1712673061821,-1687.99,0.0002047,2]
[321984660,1712673061830,-500.0,0.0002047,2]
[321984661,1712673061839,-553.48,0.0002047,2]
[321984662,1712673061849,-500.0,0.0002047,2]
[321984663,1712673061858,-3926.99,0.0002047,2]
[321984664,1712673061868,-500.0,0.0002047,2]
[321984665,1712673061878,-1500.84,0.0002047,2]
[321984666,1712673061888,-3651.81,0.0002047,2]
[321984667,1712673061898,-1900.17,0.0002047,2]
[321984668,1712673061908,-630.13,0.0002047,2]
[321984669,1712673061918,-1932.83,0.0002047,2]
[321984670,1712673061929,-603.43,0.0002047,2]
[321984671,1712673061944,-1264.43,0.0002047,2]
[321984672,1712673061954,-1336.89,0.0002047,2]
[321984673,1712673061964,-934.19,0.0002047,2]
[321984674,1712673061974,-2062.8,0.0002047,2]
[321984675,1712673061983,-753.81,0.0002047,2]
[321984676,1712673061993,-1354.19,0.0002047,2]
[321984677,1712673062003,-673.6,0.0002047,2]
[321984678,1712673062013,-2423.23,0.0002047,2]
[321984679,1712673062023,-1181.24,0.0002047,2]
[321984680,1712673062033,-595.38,0.0002047,2]
[321984681,1712673062043,-2644.37,0.0002047,2]
[321984682,1712673062052,-500.0,0.0002047,2]
[321984683,1712673062062,-993.27,0.0002047,2]
[321984684,1712673062073,-2432.9,0.0002047,2]
[321984685,1712673062084,-552.64,0.0002047,2]
[321984686,1712673062095,-2628.34,0.0002047,2]
[321984687,1712673062106,-1156.89,0.0002047,2]
[321984688,1712673062116,-500.0,0.0002047,2]
[321984689,1712673062127,-4227.79,0.0002047,2]
[321984690,1712673062137,-1328.43,0.0002047,2]
[321984691,1712673062149,-7242.96,0.0002047,2]
[321984692,1712673062160,-8000.0,0.0002048,2]
[321984693,1712673062172,-8000.0,0.000205,2]
[321984694,1712673062182,-325.84537089,0.00020506,2]
[321984695,1712673062207,-680.58,0.00020515,2]
[321984696,1712673062218,-8000.0,0.0002052,2]
[321984697,1712673062229,-607.0,0.00020528,2]
[321984698,1712673062240,-8000.0,0.0002054,2]
[321984699,1712673062250,-5045.3383894,0.00020543,2]
[321984700,1712673062261,-519.0,0.00020547,2]
[321984701,1712673062272,-7968.19,0.00020547,2]
[321984702,1712673062282,-2807.77,0.00020547,2]
[321984703,1712673062292,-2195.46,0.00020547,2]
[321984704,1712673062302,-1791.93,0.00020547,2]
[321984705,1712673062312,-2568.91,0.00020547,2]
[321984706,1712673062321,-5606.4,0.00020548,2]
[321984707,1712673062331,-8000.0,0.0002056,2]
[321984708,1712673062340,-1762.27300257,0.0002058,2]
[321984709,1712673062350,-8000.0,0.0002058,2]
[321984710,1712673062360,-556.70589269,0.00020581,2]
[321984711,1712673062369,-1012.63,0.00020582,2]
[321984712,1712673062379,-500.0,0.00020582,2]
[321984713,1712673062389,-500.0,0.00020582,2]
[321984714,1712673062705,-916.01,0.00020582,2]
[321984715,1712673062716,-880.84,0.00020582,2]
[321984716,1712673062726,-517.72,0.00020582,2]
[321984717,1712673062737,-518.17,0.00020582,2]
[321984718,1712673062748,-916.32,0.00020582,2]
[321984719,1712673062758,-853.5,0.00020582,2]
[321984720,1712673062768,-532.98,0.00020582,2]
[321984721,1712673062777,-500.0,0.00020582,2]
[321984722,1712673062787,-774.75,0.00020582,2]
[321984723,1712673062796,-1088.74,0.00020582,2]
[321984724,1712673062805,-871.83,0.00020582,2]
[321984725,1712673062814,-1328.14,0.00020582,2]
[321984726,1712673062824,-8000.0,0.000206,2]
[321984727,1712673062834,-8000.0,0.0002062,2]
[321984728,1712673062845,-98081.02909115,0.00020632,2]
[321984729,1712673062854,-1922.36,0.00020634,2]
[321984730,1712673062864,-2930.92,0.0002064,2]
[321984731,1712673062873,-520.0,0.00020641,2]
[321984732,1712673062883,-1576.6,0.00020642,2]
[321984733,1712673062893,-2700.17,0.00020642,2]
[321984734,1712673062902,-2425.12,0.00020642,2]
[321984735,1712673062912,-1918.07,0.00020642,2]
[321984736,1712673062922,-794.51,0.00020642,2]
[321984737,1712673062931,-1947.33,0.00020642,2]
[321984738,1712673062943,-3051.36,0.00020642,2]
[321984739,1712673062953,-6007.64,0.00020642,2]
[321984740,1712673062962,-2264.34,0.00020642,2]
[321984741,1712673062971,-3048.79,0.00020642,2]
[321984742,1712673062981,-15934.7,0.00020642,2]
[321984743,1712673062990,-1471.95,0.00020642,2]
[321984744,1712673063000,-3339.2,0.00020642,2]
[321984745,1712673063009,-1679.13,0.00020642,2]
[321984746,1712673063019,-4614.19,0.00020642,2]
[321984747,1712673063029,-2229.03,0.00020642,2]
[321984748,1712673063039,-4421.25,0.00020642,2]
[321984749,1712673063048,-3729.88,0.00020642,2]
[321984750,1712673063058,-1994.58,0.00020642,2]
[321984751,1712673063067,-500.0,0.00020642,2]
[321984752,1712673063078,-500.0,0.00020642,2]
[321984753,1712673063088,-1941.65,0.00020642,2]
[321984754,1712673063099,-1858.23,0.00020642,2]
[321984755,1712673063108,-500.0,0.00020642,2]
[321984756,1712673063118,-500.0,0.00020642,2]
[321984757,1712673063128,-500.0,0.00020642,2]
[321984758,1712673063137,-180.16294729,0.00020642,2]
[321984759,1712673063146,-500.0,0.00020642,2]
[321984760,1712673063156,-1577.22,0.00020642,2]
[321984761,1712673063166,-5017.78,0.00020643,2]
[321984762,1712673063175,-500.0,0.00020643,2]
[321984763,1712673063185,-1684.11,0.00020643,2]
[321984764,1712673063198,-798.07,0.00020643,2]
[321984765,1712673063208,-1293.13,0.00020643,2]
[321984766,1712673063217,-43443.91,0.00020643,2]
[321984767,1712673063228,-1249.49,0.00020643,2]
[321984768,1712673063238,-3678.23,0.00020643,2]
[321984769,1712673063248,-2164.97,0.00020643,2]
[321984770,1712673063258,-2609.47,0.00020643,2]
[321984771,1712673063267,-2043.36,0.00020643,2]
[321984772,1712673063277,-1084.68,0.00020643,2]
[321984773,1712673063286,-4379.96,0.00020643,2]
[321984774,1712673063296,-2396.01,0.00020643,2]
[321984775,1712673063305,-544.56,0.00020643,2]
[321984776,1712673063315,-3950.62,0.00020643,2]
[321984777,1712673063325,-2732.07,0.00020643,2]
[321984778,1712673063335,-812.02,0.00020643,2]
[321984779,1712673063344,-13075.79,0.00020643,2]
[321984780,1712673063354,-5025.59,0.00020643,2]
[321984781,1712673063363,-5881.29,0.00020643,2]
[321984782,1712673063373,-3356.15,0.00020643,2]
[321984783,1712673063383,-1175.72,0.00020643,2]
[321984784,1712673063393,-2071.18,0.00020643,2]
[321984785,1712673063403,-2057.16,0.00020643,2]
[321984786,1712673063413,-2715.79,0.00020643,2]
[321984787,1712673063423,-5613.49,0.00020643,2]
[321984788,1712673063433,-2200.96,0.00020643,2]
[321984789,1712673063446,-150.0,0.00020648,2]
[321984790,1712673063456,-156.44070431,0.00020654,2]
[321984791,1712673063466,-155.8559771,0.00020654,2]
[321984792,1712673063475,-1764.087237,0.00020654,2]
[321984793,1712673063485,-155.09101632,0.00020654,2]
[321984794,1712673063495,-5357.36156544,0.00020654,2]
[321984795,1712673063504,-6389.74782867,0.00020654,2]
[321984796,1712673063514,-157.40175635,0.00020654,2]
[321984797,1712673063523,-233.30648504,0.00020654,2]
[321984798,1712673063533,-591.21,0.00020655,2]
[321984799,1712673063543,-746.63,0.00020655,2]
[321984800,1712673063552,-500.0,0.00020655,2]
[321984801,1712673063561,-900.81,0.00020655,2]
[321984802,1712673063571,-625.72,0.00020655,2]
[321984803,1712673063586,-500.0,0.00020655,2]
[321984804,1712673063596,-551.94,0.00020655,2]
[321984805,1712673063605,-194.13800483,0.00020655,2]
[321984806,1712673063614,-500.0,0.00020655,2]
[321984807,1712673063626,-500.0,0.00020655,2]
[321984808,1712673063636,-500.0,0.00020655,2]
[321984809,1712673063645,-500.0,0.00020655,2]
[321984810,1712673063656,-500.0,0.00020655,2]
[321984811,1712673063666,-500.0,0.00020655,2]
[321984812,1712673063676,-500.0,0.00020655,2]
[321984813,1712673063685,-500.0,0.00020655,2]
[321984814,1712673063698,-500.0,0.00020655,2]
[321984815,1712673063708,-500.0,0.00020655,2]
[321984816,1712673063717,-500.0,0.00020655,2]
[321984817,1712673063727,-500.0,0.00020655,2]
[321984818,1712673063736,-500.0,0.00020655,2]
[321984819,1712673063745,-500.0,0.00020655,2]
[321984820,1712673063754,-1286.39,0.00020655,2]
[321984821,1712673063763,-767.6,0.00020655,2]
[321984822,1712673063773,-500.0,0.00020655,2]
[321984823,1712673063782,-1574.61,0.00020655,2]
[321984824,1712673063792,-230.68343788,0.00020655,2]
[321984825,1712673063801,-500.0,0.00020655,2]
[321984826,1712673063810,-770.45,0.00020655,2]
[321984827,1712673063820,-724.04,0.00020655,2]
[321984828,1712673063829,-500.0,0.00020655,2]
[321984829,1712673063839,-500.0,0.00020655,2]
[321984830,1712673063848,-500.0,0.00020655,2]
[321984831,1712673063857,-551.2,0.00020655,2]
[321984832,1712673063866,-500.0,0.00020655,2]
[321984833,1712673063876,-500.0,0.00020655,2]
[321984834,1712673063885,-500.0,0.00020655,2]
[321984835,1712673063894,-500.0,0.00020655,2]
[321984836,1712673063903,-1419.81,0.00020655,2]
[321984837,1712673063912,-500.0,0.00020655,2]
[321984838,1712673063922,-500.0,0.00020655,2]
[321984839,1712673063931,-1138.13,0.00020655,2]
[321984840,1712673063943,-500.0,0.00020655,2]
[321984841,1712673063954,-774.3,0.00020655,2]
[321984842,1712673063964,-1106.43,0.00020655,2]
[321984843,1712673063973,-825.7,0.00020655,2]
[321984844,1712673063982,-624.17,0.00020655,2]
[321984845,1712673063992,-500.0,0.00020655,2]
[321984846,1712673064002,-1062.05,0.00020655,2]
[321984847,1712673064011,-500.0,0.00020655,2]
[321984848,1712673064021,-1168.01,0.00020655,2]
[321984849,1712673064030,-1770.47,0.00020655,2]
[321984850,1712673064039,-500.0,0.00020655,2]
[321984851,1712673064049,-500.0,0.00020655,2]
[321984852,1712673064058,-500.0,0.00020655,2]
[321984853,1712673064067,-607.04,0.00020655,2]
[321984854,1712673064077,-500.0,0.00020655,2]
[321984855,1712673064086,-843.1,0.00020655,2]
[321984856,1712673064095,-881.46,0.00020655,2]
[321984857,1712673064105,-500.0,0.00020655,2]
[321984858,1712673064114,-500.0,0.00020655,2]
[321984859,1712673064124,-517.09923713,0.00020655,2]
[321984860,1712673064133,-990.48,0.00020655,2]
[321984861,1712673064142,-1738.96,0.00020655,2]
[321984862,1712673064152,-500.0,0.00020655,2]
[321984863,1712673064162,-1167.93,0.00020655,2]
[321984864,1712673064171,-719.71,0.00020655,2]
[321984865,1712673064180,-500.0,0.00020655,2]
[321984866,1712673064191,-500.0,0.00020655,2]
[321984867,1712673064202,-1069.62,0.00020655,2]
[321984868,1712673064211,-500.0,0.00020655,2]
[321984869,1712673064220,-761.98,0.00020655,2]
[321984870,1712673064230,-500.0,0.00020655,2]
[321984871,1712673064239,-731.51,0.00020655,2]
[321984872,1712673064249,-500.0,0.00020655,2]
[321984873,1712673064258,-981.74,0.00020655,2]
[321984874,1712673064267,-832.66,0.00020655,2]
[321984875,1712673064276,-1002.22,0.00020655,2]
[321984876,1712673064285,-503.12,0.00020655,2]
[321984877,1712673064294,-869.23,0.00020655,2]
[321984878,1712673064303,-934.64,0.00020655,2]